bitfinex/quotes_SOLUSD_20240703
["timestamp","ask_amount","ask_price","bid_price","bid_amount"]
[1720041166964,7.1577,139.71,139.66,7.1601]
[1720041167287,7.1582,139.7,139.66,17.9]
[1720041167463,7.1577,139.71,139.66,25.0602]
[1720041167668,7.1577,139.71,139.66,25.06]
[1720041168196,7.1578,139.71,139.66,25.0598]
[1720041168797,7.157,139.73,139.66,17.9]
[1720041169095,7.1572,139.72,139.67,7.1595]
[1720041169299,7.1577,139.71,139.66,25.06]
[1720041169476,7.1572,139.72,139.67,7.1596]
[1720041170375,7.1572,139.72,139.68,7.1591]
[1720041170594,7.1572,139.72,139.66,17.9]
[1720041171398,7.1572,139.72,139.67,7.1595]
[1720041171601,7.1578,139.71,139.66,25.0601]
[1720041171968,7.1572,139.72,139.66,17.9]
[1720041172174,7.1572,139.72,139.67,7.1595]
[1720041172875,7.1572,139.72,139.66,17.9]
[1720041173093,21.41,139.77,139.7,7.158]
[1720041173491,7.1563,139.74,139.69,7.1585]
[1720041173803,7.1568,139.73,139.68,25.0567]
[1720041174098,7.1563,139.74,139.68,17.8977]
[1720041174484,7.1567,139.73,139.69,7.1585]
[1720041175902,7.1562,139.74,139.69,7.1585]
[1720041176290,7.1539,139.79,139.74,7.156]
[1720041176471,7.1544,139.78,139.73,7.1563]
[1720041176870,38.01,139.86,139.7,16.4799]
[1720041177072,7.1535,139.8,139.75,7.1556]
[1720041177275,7.1545,139.78,139.73,25.0482]
[1720041177587,7.154,139.79,139.73,25.048]
[1720041177787,7.1543,139.78,139.73,25.048]
[1720041178094,7.1543,139.78,139.7,16.4799]
[1720041178095,17.878,139.84,139.75,17.8887]
[1720041178272,7.1551,139.76,139.71,7.1576]
[1720041178477,21.41,139.79,139.7,16.4799]
[1720041178780,39.2941,139.79,139.68,6.3806]
[1720041178992,20.0,139.78,139.68,6.3806]
[1720041179192,7.1547,139.77,139.72,7.1571]
[1720041179586,20.0,139.76,139.72,7.1571]
[1720041179790,20.0,139.76,139.73,7.1566]
[1720041180207,20.0,139.76,139.72,7.1569]
[1720041180396,20.0,139.76,139.73,25.0479]
[1720041180705,7.1542,139.78,139.73,25.0479]
[1720041180882,20.0,139.77,139.73,25.0479]
[1720041181078,17.8815,139.81,139.73,25.0479]
[1720041181310,7.1533,139.8,139.76,7.1551]
[1720041181602,7.1537,139.79,139.75,25.0441]
[1720041182195,17.8782,139.84,139.77,17.8863]
[1720041182386,17.8782,139.84,139.7,100.0]
[1720041182592,7.1526,139.81,139.77,7.1545]
[1720041182892,7.1526,139.81,139.76,25.0426]
[1720041183281,31.03,139.86,139.78,25.0389]
[1720041183478,7.1508,139.85,139.8,17.8825]
[1720041183711,7.1513,139.84,139.8,17.8825]
[1720041183883,7.1507,139.85,139.8,25.0355]
[1720041184205,7.1512,139.84,139.8,17.8825]
[1720041184509,7.1507,139.85,139.8,25.0354]
[1720041184807,39.28,139.9,139.8,17.8825]
[1720041185012,7.1498,139.87,139.82,7.1518]
[1720041185693,7.15,139.86,139.82,7.1518]
[1720041186201,7.149,139.88,139.83,7.1514]
[1720041186404,7.149,139.88,139.84,7.1509]
[1720041186617,7.149,139.88,139.83,7.1513]
[1720041187410,7.1495,139.87,139.83,7.1513]
[1720041187605,7.1495,139.87,139.82,25.0316]
[1720041187844,7.1501,139.86,139.81,7.1522]
[1720041188124,7.1497,139.87,139.82,7.152]
[1720041188421,7.1482,139.9,139.85,7.1503]
[1720041188624,17.8681,139.92,139.8,16.1703]
[1720041188625,20.0,139.89,139.8,16.1703]
[1720041188800,53.446,139.94,139.81,0.17]
[1720041189134,7.1498,139.87,139.82,7.1518]
[1720041189291,20.17,139.93,139.83,17.8784]
[1720041189610,39.2793,139.91,139.82,25.0317]
[1720041189923,7.1501,139.86,139.81,7.1522]
[1720041190122,17.8717,139.89,139.8,16.1703]
[1720041190420,7.1498,139.87,139.82,7.1518]
[1720041190624,7.1498,139.87,139.83,7.1515]
[1720041192016,7.1491,139.88,139.83,7.1515]
[1720041192809,7.1491,139.88,139.84,7.151]
[1720041193320,7.1491,139.88,139.83,25.03]
[1720041193517,7.1495,139.87,139.83,17.8786]
[1720041193704,7.1498,139.87,139.83,7.1515]
[1720041193904,7.1498,139.87,139.82,7.1519]
[1720041194114,7.15,139.86,139.82,25.0318]
[1720041194616,7.1496,139.87,139.82,25.0318]
[1720041195008,21.41,139.92,139.83,7.1514]
[1720041195402,6.8312,139.95,139.83,7.1514]
[1720041195403,21.41,139.91,139.83,17.8786]
[1720041195627,7.1496,139.87,139.83,17.8786]
[1720041196002,7.15,139.86,139.83,17.8786]
[1720041196633,7.1496,139.87,139.83,25.03]
[1720041196807,7.1496,139.87,139.83,17.8786]
[1720041197808,7.1496,139.87,139.83,25.03]
[1720041198703,7.1491,139.88,139.83,25.03]
[1720041198904,7.1491,139.88,139.84,7.1509]
[1720041199427,7.1491,139.88,139.83,25.0299]
[1720041199632,7.1491,139.88,139.83,17.8786]
[1720041200241,20.0,139.9,139.85,17.8758]
[1720041200426,39.3672,139.93,139.86,7.1496]
[1720041200632,21.5,139.91,139.8,16.1703]
[1720041200805,7.1499,139.87,139.8,16.1703]
[1720041201299,37.88,139.91,139.85,17.8757]
[1720041201505,27.1482,139.9,139.86,7.1498]
[1720041201705,20.0,139.9,139.86,7.1498]
[1720041201903,7.1472,139.92,139.88,7.1488]
[1720041202137,7.1475,139.91,139.87,25.0229]
[1720041202313,7.1483,139.9,139.85,7.1503]
[1720041202515,7.1481,139.9,139.85,7.1503]
[1720041202745,7.1474,139.91,139.86,17.8746]
[1720041203034,7.1472,139.92,139.88,17.8722]
[1720041203347,6.6612,139.95,139.9,17.8697]
[1720041203507,21.5,139.97,139.88,7.1486]
[1720041203508,39.3614,139.97,139.88,7.1486]
[1720041204134,7.1473,139.92,139.87,25.022]
[1720041204931,7.1473,139.92,139.87,25.0221]
[1720041205142,7.1473,139.92,139.88,7.1489]
[1720041205434,7.1464,139.93,139.89,7.1481]
[1720041205824,7.1464,139.93,139.88,7.1487]
[1720041207438,15.3546,139.98,139.89,17.8711]
[1720041207631,15.3546,139.98,139.9,1.4293605]
[1720041207832,20.0,139.97,139.91,17.8684]
[1720041208024,27.145,139.96,139.91,17.8684]
[1720041208350,27.145,139.96,139.91,25.0155]
[1720041208518,7.1456,139.95,139.91,25.0155]
[1720041208936,20.0,139.96,139.92,1.42915618]
[1720041209115,39.3554,140.02,139.93,17.8655]
[1720041209323,7.1429,140.0,139.95,17.8631]
[1720041209629,7.1429,140.0,139.95,25.0083]
[1720041209817,71.0388304,140.03,139.94,7.1458]
[1720041210131,7.1442,139.98,139.93,7.1462]
[1720041210547,7.1458,139.95,139.9,6.081]
[1720041210711,7.1462,139.94,139.89,17.8703]
[1720041210916,30.97,139.99,139.91,17.8685]
[1720041211117,7.1456,139.95,139.91,17.8685]
[1720041211319,7.1459,139.94,139.89,7.1481]
[1720041211622,30.97,139.99,139.92,7.1467]
[1720041211828,20.0,139.98,139.91,7.1473]
[1720041212151,7.1464,139.93,139.87,24.0796]
[1720041212322,7.1464,139.93,139.88,7.1486]
[1720041212651,7.1471,139.92,139.87,17.8726]
[1720041212826,7.1465,139.93,139.89,7.1483]
[1720041213142,7.1465,139.93,139.88,7.1488]
[1720041213337,7.147,139.92,139.87,25.0217]
[1720041213536,6.5162,139.96,139.89,7.1484]
[1720041213737,7.1459,139.94,139.9,7.1477]
[1720041213918,20.0,139.93,139.89,25.0195]
[1720041214122,16.1676,139.92,139.8,6.49]
[1720041214340,6.6175,139.88,139.8,7.153]
[1720041214539,7.1519,139.83,139.78,25.0384]
[1720041214752,70.3444,139.87,139.77,15.2079]
[1720041215051,30.97,139.83,139.75,25.0441]
[1720041215224,7.1532,139.8,139.75,25.0441]
[1720041215419,30.97,139.83,139.77,17.8856]
[1720041215824,20.0,139.82,139.77,17.8856]
[1720041216242,27.152,139.82,139.78,7.154]
[1720041216446,52.47,139.87,139.77,17.8856]
[1720041217051,7.1514,139.84,139.77,17.8856]
[1720041217236,7.1514,139.84,139.79,7.1534]
[1720041217551,7.1515,139.83,139.78,7.1539]
[1720041217871,7.1508,139.85,139.8,7.1529]
[1720041218633,7.1501,139.86,139.81,7.1524]
[1720041219034,45.9902,139.88,139.79,25.0365]
[1720041219248,7.1514,139.84,139.79,25.0365]
[1720041219444,24.4902,139.88,139.8,7.1529]
[1720041219623,7.1506,139.85,139.8,7.1529]
[1720041220454,45.9865,139.91,139.82,7.1516]
[1720041220763,7.1496,139.87,139.81,17.881]
[1720041220927,7.1501,139.86,139.81,25.0334]
[1720041221845,6.6175,139.91,139.83,17.8776]
[1720041222030,7.1517,139.83,139.8,6.49]
[1720041222229,17.8741,139.87,139.78,7.46683364]
[1720041222435,7.1529,139.81,139.76,7.1548]
[1720041222630,7.1522,139.82,139.77,7.1542]
[1720041223363,7.1534,139.8,139.76,17.8872]
[1720041223931,6.6118,139.83,139.77,7.1541]
[1720041224130,7.1522,139.82,139.77,7.1541]
[1720041225256,20.0,139.86,139.78,17.885]
[1720041225457,7.1511,139.84,139.79,7.1534]
[1720041225665,7.1511,139.84,139.8,7.1528]
[1720041225851,20.0,139.83,139.8,7.1528]
[1720041226029,7.1511,139.84,139.79,7.1533]
[1720041226365,7.1516,139.83,139.78,25.0389]
[1720041226652,7.1516,139.83,139.79,7.1534]
[1720041226861,7.151,139.84,139.79,7.1534]
[1720041227041,20.0,139.83,139.8,7.153]
[1720041227238,20.0,139.83,139.81,7.1525]
[1720041227441,7.1509,139.85,139.81,7.1525]
[1720041227651,20.0,139.84,139.81,7.1525]
[1720041227885,20.0,139.84,139.8,25.0352]
[1720041228737,45.9419,139.91,139.82,17.8797]
[1720041229046,7.1485,139.89,139.85,7.1504]
[1720041229362,7.1489,139.88,139.84,25.0282]
[1720041229539,7.1486,139.89,139.84,25.0282]
[1720041229742,7.1491,139.88,139.84,25.0282]
[1720041229960,6.5722,139.91,139.84,25.0282]
[1720041229961,7.1484,139.9,139.85,7.1505]
[1720041230141,7.1485,139.89,139.84,25.0282]
[1720041230342,6.5722,139.91,139.83,7.1514]
[1720041230847,7.149,139.88,139.83,17.8787]
[1720041231048,6.5722,139.91,139.83,17.8787]
[1720041231266,7.1491,139.88,139.83,25.0298]
[1720041231459,7.1485,139.89,139.85,7.1502]
[1720041231842,7.1481,139.9,139.85,7.1502]
[1720041232045,27.1484,139.89,139.85,7.1502]
[1720041232556,7.1479,139.9,139.86,7.1498]
[1720041233165,7.1479,139.9,139.85,25.026]
[1720041233740,7.1486,139.89,139.85,17.8757]
[1720041234147,7.1486,139.89,139.85,25.0259]
[1720041234943,17.869,139.91,139.83,7.1513]
[1720041235353,20.0,139.9,139.83,7.1513]
[1720041235561,7.1488,139.89,139.84,7.1508]
[1720041235949,7.1488,139.89,139.85,7.1504]
[1720041237669,27.1481,139.9,139.85,7.1504]
[1720041237856,27.1481,139.9,139.86,7.1499]
[1720041238178,20.0,139.9,139.87,7.1494]
[1720041238465,7.1476,139.91,139.86,25.0243]
[1720041238645,7.1476,139.91,139.87,7.1494]
[1720041238848,7.1476,139.91,139.86,25.0244]
[1720041239245,7.1469,139.92,139.87,0.17]
[1720041239457,7.1479,139.91,139.86,17.8746]
[1720041239641,7.1479,139.91,139.86,25.0242]
[1720041240464,7.1481,139.9,139.86,25.0243]
[1720041240967,7.1486,139.89,139.85,7.1503]
[1720041241174,7.1502,139.86,139.81,22.6322]
[1720041241346,21.5,139.92,139.83,7.1511]
[1720041241347,7.1493,139.88,139.83,7.1511]
[1720041241550,21.5,139.92,139.81,22.6322]
[1720041241551,7.1485,139.89,139.81,22.6322]
[1720041242160,7.1492,139.88,139.84,17.8774]
[1720041242362,7.1496,139.87,139.83,7.151]
[1720041242978,21.5,139.91,139.81,40.5124]
[1720041243156,7.1502,139.86,139.81,47.6646]
[1720041243660,7.1497,139.87,139.82,7.1519]
[1720041244055,7.15,139.86,139.82,7.1519]
[1720041244661,27.78,139.91,139.83,17.8786]
[1720041244854,7.1487,139.89,139.84,7.151]
[1720041246366,7.1491,139.88,139.84,7.151]
[1720041246683,7.1503,139.86,139.81,22.6322]
[1720041246873,7.1492,139.88,139.83,7.1513]
[1720041247173,7.1486,139.89,139.84,7.1509]
[1720041247556,20.0,139.88,139.84,7.1509]
[1720041247754,7.149,139.88,139.84,7.1509]
[1720041248167,7.149,139.88,139.83,7.1513]
[1720041248881,7.149,139.88,139.84,7.1507]
[1720041249059,7.149,139.88,139.82,17.8794]
[1720041249262,7.1498,139.87,139.82,17.8794]
[1720041249448,7.1498,139.87,139.83,7.1512]
[1720041249652,7.1498,139.87,139.82,17.8794]
[1720041249653,7.1491,139.88,139.84,7.1509]
[1720041250269,7.1479,139.9,139.84,17.8769]
[1720041250448,7.1477,139.91,139.86,7.1495]
[1720041250654,7.1477,139.91,139.86,25.0244]
[1720041250959,27.1481,139.9,139.86,17.8749]
[1720041251372,27.1481,139.9,139.86,25.0247]
[1720041251954,7.1484,139.89,139.85,7.1504]
[1720041252278,7.1485,139.89,139.85,7.1503]
[1720041252586,27.1481,139.9,139.85,7.1503]
[1720041252756,7.1494,139.88,139.84,17.8775]
[1720041253267,20.0,139.9,139.83,7.1515]
[1720041253463,7.1507,139.85,139.81,7.1525]
[1720041253777,7.1501,139.86,139.82,7.1519]
[1720041254069,7.1497,139.87,139.82,7.1519]
[1720041254286,7.1497,139.87,139.83,7.1513]
[1720041254658,7.149,139.88,139.83,25.0301]
[1720041255278,7.149,139.88,139.84,7.1508]
[1720041256061,20.0,139.89,139.85,7.1504]
[1720041256268,7.1482,139.9,139.85,7.1504]
[1720041256469,20.0,139.89,139.85,7.1504]
[1720041256669,27.1485,139.89,139.85,7.1504]
[1720041257078,48.8373,139.93,139.86,7.1496]
[1720041257265,6.4801,139.95,139.87,0.17]
[1720041257481,7.146,139.94,139.9,17.869]
[1720041257675,7.1461,139.94,139.87,0.17]
[1720041258068,5.93672531,140.01,139.9,15.6767]
[1720041258269,6.3106,140.02,139.95,17.8629]
[1720041258481,7.1421,140.02,139.97,17.8606]
[1720041258996,7.1423,140.01,139.97,17.8606]
[1720041259375,7.142,140.02,139.97,25.0049]
[1720041259762,20.0,140.01,139.98,7.1437]
[1720041259967,7.5640304,140.03,139.98,7.1437]
[1720041260301,7.1418,140.02,139.97,25.0048]
[1720041260467,7.1427,140.01,139.96,7.3148]
[1720041260666,7.143,140.0,139.95,7.1453]
[1720041260874,7.1425,140.01,139.96,7.1448]
[1720041261167,0.4227304,140.03,139.97,7.144]
[1720041262309,7.1418,140.02,139.97,7.144]
[1720041262474,7.1418,140.02,139.96,17.8612]
[1720041262475,7.5640304,140.03,139.98,7.1436]
[1720041263098,0.4227304,140.03,139.96,17.8612]
[1720041263403,7.1419,140.02,139.97,7.1442]
[1720041263598,7.1419,140.02,139.96,17.8612]
[1720041263792,7.1419,140.02,139.97,7.1439]
[1720041264305,0.4227304,140.03,140.02,7.1418]
[1720041272802,0.4227304,140.03,140.02,7.3118]
[1720041272983,0.4227304,140.03,140.02,43.1909]
[1720041276309,0.4227304,140.03,140.02,143.1909]
[1720041277114,7.136,140.14,140.09,24.9831]
[1720041277406,6.1612,140.15,140.09,24.9831]
[1720041277610,7.1359,140.14,140.09,24.9831]
[1720041277823,34.5859,140.14,140.09,24.9831]
[1720041278109,7.1367,140.12,140.08,7.1385]
[1720041278315,27.45,140.14,140.08,7.1386]
[1720041278513,27.45,140.14,140.08,17.8467]
[1720041278887,27.45,140.14,140.09,7.138]
[1720041279205,34.5857,140.14,140.09,7.138]
[1720041279389,34.5857,140.14,140.1,7.1376]
[1720041279590,7.1362,140.13,140.09,7.1381]
[1720041279786,34.5872,140.12,140.08,17.8467]
[1720041279986,27.45,140.12,140.09,7.1379]
[1720041280195,27.45,140.12,140.08,17.8467]
[1720041280712,27.45,140.12,140.08,24.9853]
[1720041281099,34.5868,140.12,140.08,24.9853]
[1720041281307,27.45,140.12,140.09,7.1382]
[1720041281614,27.45,140.12,140.1,7.1375]
[1720041282798,27.45,140.12,140.1,24.9818]
[1720041283915,34.5867,140.12,140.08,7.1384]
[1720041284089,27.45,140.12,140.09,24.9837]
[1720041285011,27.45,140.12,140.1,7.1377]
[1720041286415,27.45,140.12,140.09,24.9836]
[1720041286706,27.45,140.12,140.08,7.1386]
[1720041286887,27.45,140.12,140.06,24.9879]
[1720041287083,34.5878,140.1,140.06,24.9879]
[1720041287310,34.5878,140.1,140.06,17.8485]
[1720041288009,34.588,140.1,140.06,24.9879]
[1720041288195,34.5879,140.1,140.02,35.7091]
[1720041288610,27.45,140.1,140.06,7.1394]
[1720041290505,76.4,140.07,140.0,7.1423]
[1720041290711,27.45,140.02,139.99,25.0014]
[1720041291017,27.45,140.02,140.0,7.1427]
[1720041291593,22.3086,140.09,140.03,17.8527]
[1720041291824,27.45,140.06,140.0,17.856]
[1720041291996,20.0,140.05,140.02,7.1418]
[1720041292405,20.0,140.05,140.03,7.1411]
[1720041293320,20.0,140.05,140.04,7.1408]
[1720041293512,27.45,140.06,140.04,7.1408]
[1720041293692,27.45,140.06,140.03,7.1411]
[1720041294822,34.5889,140.08,140.03,7.1411]
[1720041295119,20.0,140.07,140.03,7.1411]
[1720041295518,27.1393,140.07,140.03,7.1411]
[1720041295720,27.1393,140.07,140.02,24.9957]
[1720041296420,20.0,140.07,140.03,7.1412]
[1720041296622,20.0,140.07,140.04,7.1407]
[1720041296823,20.0,140.07,140.04,7.1405]
[1720041297021,20.0,140.07,140.03,7.311]
[1720041297319,20.0,140.07,140.04,7.1406]
[1720041297515,27.45,140.08,140.04,7.1406]
[1720041297904,7.1394,140.07,140.03,7.4812]
[1720041298118,27.45,140.08,140.05,7.1402]
[1720041299120,34.5879,140.1,140.05,7.1402]
[1720041299504,20.0,140.09,140.05,7.1402]
[1720041300022,27.1384,140.09,140.04,24.9923]
[1720041300229,20.0,140.09,140.03,7.4811]
[1720041300397,7.1389,140.08,140.03,7.4811]
[1720041300604,27.1384,140.09,140.04,7.1405]
[1720041301532,7.1389,140.08,140.04,7.1405]
[1720041301705,20.0,140.09,140.03,17.8533]
[1720041301906,7.1389,140.08,140.03,17.8533]
[1720041302212,7.1393,140.07,140.03,17.8533]
[1720041302413,27.45,140.08,140.01,7.142]
[1720041302610,7.14,140.06,140.01,7.142]
[1720041302813,6.89125973,140.14,140.03,100.0]
[1720041303130,6.3848,140.15,140.1,17.8442]
[1720041303336,42.7516,140.16,140.1,17.8442]
[1720041303520,42.7516,140.16,140.11,7.1371]
[1720041304007,7.1355,140.15,140.1,25.1518]
[1720041304206,7.1355,140.15,140.11,0.17]
[1720041304519,7.1357,140.14,140.11,0.17]
[1720041305024,7.1357,140.14,140.1,24.9818]
[1720041305630,7.1365,140.13,140.09,0.17]
[1720041305808,7.1358,140.14,140.09,7.1381]
[1720041306831,7.1358,140.14,140.1,7.1377]
[1720041307228,0.8384882,140.18,140.11,16.0376]
[1720041307534,0.8384882,140.18,140.12,0.17]
[1720041307712,0.8384882,140.18,140.17,7.1341]
[1720041308732,0.8384882,140.18,140.17,7.3041]
[1720041309402,0.8384882,140.18,140.13,17.8396]
[1720041309928,0.8384882,140.18,140.17,7.1341]
[1720041310140,0.8384882,140.18,140.17,7.4741]
[1720041310505,0.8384882,140.18,140.17,7.3041]
[1720041310738,0.8384882,140.18,140.16,7.1346]
[1720041311106,0.8384882,140.18,140.17,7.1341]
[1720041311330,0.8384882,140.18,140.17,7.4741]
[1720041312112,0.8384882,140.18,140.15,17.8376]
[1720041312421,0.8384882,140.18,140.16,7.3046]
[1720041312821,7.1346,140.17,140.12,17.8409]
[1720041313332,7.1342,140.17,140.12,17.8409]
[1720041313534,0.8384882,140.18,140.08,24.035]
[1720041313736,7.1348,140.16,140.11,7.137]
[1720041313918,7.1352,140.15,140.1,24.9814]
[1720041314246,7.1364,140.13,140.08,7.1384]
[1720041314439,17.837,140.16,140.08,7.1384]
[1720041314631,7.1364,140.13,140.08,7.1384]
[1720041315145,39.337,140.16,140.07,17.8472]
[1720041315450,7.1357,140.14,140.09,7.1378]
[1720041315827,7.1362,140.13,140.09,7.1378]
[1720041316028,7.1367,140.12,140.08,7.1385]
[1720041316244,7.1372,140.11,140.07,17.8472]
[1720041316638,7.1387,140.08,140.04,17.8512]
[1720041316825,21.5,140.12,139.97,21.7391]
[1720041317175,36.9802,140.13,140.01,17.8551]
[1720041317176,39.3434,140.11,140.01,17.8551]
[1720041317319,7.1398,140.06,140.01,24.997]
[1720041317524,48.7061,140.09,139.98,25.3186238]
[1720041317746,48.7061,140.09,139.98,7.4593238]
[1720041317928,20.0,140.08,139.98,7.4593238]
[1720041318327,20.0,140.08,140.0,17.8566]
[1720041318851,7.1398,140.06,140.01,7.4822]
[1720041319247,7.1393,140.07,140.02,7.1418]
[1720041319448,7.1403,140.05,140.0,24.9993]
[1720041319749,27.1399,140.06,140.01,7.4823]
[1720041320222,7.1403,140.05,140.01,7.4823]
[1720041320422,7.1403,140.05,140.01,0.34]
[1720041320730,27.141,140.04,140.0,17.8566]
[1720041320925,20.0,140.04,140.0,24.9994]
[1720041321132,20.0,140.04,140.01,7.1419]
[1720041321343,7.1399,140.06,140.01,7.1419]
[1720041321651,27.1406,140.05,140.0,24.9994]
[1720041322647,48.1177,140.05,139.98,7.4593238]
[1720041322848,7.1426,140.01,139.97,17.8602]
[1720041323036,78.9777,140.05,139.93,21.6791]
[1720041323241,78.9777,140.05,139.93,22.3024]
[1720041323242,7.1442,139.98,139.93,22.3024]
[1720041323423,17.8561,140.01,139.94,7.1458]
[1720041323625,7.1449,139.96,139.91,17.8675]
[1720041324048,21.5,139.98,139.88,24.3943]
[1720041324261,7.1449,139.96,139.91,7.147]
[1720041324458,7.1454,139.95,139.91,7.147]
[1720041324740,7.145,139.96,139.92,7.1468]
[1720041324947,7.145,139.96,139.91,7.1473]
[1720041325253,7.1454,139.95,139.91,7.1473]
[1720041325633,7.145,139.96,139.91,7.1473]
[1720041326255,21.5,140.0,139.88,6.5227]
[1720041326451,7.1468,139.93,139.88,7.1487]
[1720041326832,17.8655,139.94,139.85,7.1503]
[1720041327031,27.1465,139.93,139.85,100.0]
[1720041327255,20.0,139.93,139.89,17.8707]
[1720041327454,7.145,139.96,139.87,100.0]
[1720041327659,7.1454,139.95,139.87,100.0]
[1720041327859,7.146,139.94,139.88,17.8714]
[1720041328056,20.0,139.93,139.91,7.1473]
[1720041328634,6.0757,139.97,139.91,7.1473]
[1720041328863,20.0,139.96,139.91,7.1473]
[1720041329049,7.1454,139.95,139.9,25.0174]
[1720041329253,7.1454,139.95,139.91,0.17]
[1720041329553,20.0,139.94,139.91,0.17]
[1720041329759,7.1404,140.05,140.0,7.1427]
[1720041329959,7.1401,140.06,140.0,7.1425]
[1720041330141,7.1401,140.06,140.0,7.1427]
[1720041330337,7.1401,140.06,140.01,7.1419]
[1720041330536,6.2824,140.08,139.99,18.1977]
[1720041330845,6.2824,140.08,140.0,7.1425]
[1720041330846,7.1404,140.05,140.0,7.1425]
[1720041331671,7.1404,140.05,140.01,7.1423]
[1720041332037,63.4764,140.08,139.96,17.8616]
[1720041332372,7.1426,140.01,139.96,25.006]
[1720041332662,7.1422,140.02,139.97,7.1443]
[1720041332849,20.0,140.01,139.97,7.1442]
[1720041333164,20.0,140.01,139.98,7.1438]
[1720041333341,7.1414,140.03,139.98,7.1438]
[1720041333544,20.0,140.02,139.98,7.1438]
[1720041333855,20.0,140.02,139.97,17.8606]
[1720041333856,20.0,140.02,139.99,7.1432]
[1720041334036,20.0,140.01,139.99,17.858]
[1720041334235,7.1408,140.04,139.99,25.001]
[1720041334443,20.0,140.03,139.99,25.001]
[1720041335660,27.7824,140.08,140.01,17.8552]
[1720041335867,6.2824,140.08,140.01,17.8552]
[1720041336043,6.2824,140.08,140.01,24.9975]
[1720041336549,6.2824,140.08,140.01,17.8552]
[1720041336751,85.4527,140.1,140.01,17.8552]
[1720041336962,7.1394,140.07,140.02,7.1416]
[1720041337161,7.1399,140.06,140.02,7.1416]
[1720041337350,35.9820972,140.18,140.03,100.17]
[1720041337675,35.9820972,140.18,140.08,17.8468]
[1720041337676,7.1364,140.13,140.08,17.8468]
[1720041338172,7.1364,140.13,140.08,24.9853]
[1720041338771,7.1353,140.15,140.1,7.1374]
[1720041338956,7.3788882,140.18,140.11,0.39505479]
[1720041338957,0.8384882,140.18,140.11,0.39505479]
[1720041339153,7.9721882,140.18,140.14,7.1353]
[1720041339759,0.8384882,140.18,140.15,7.135]
[1720041340054,0.8384882,140.18,140.12,0.34]
[1720041340383,0.8384882,140.18,140.14,7.1357]
[1720041340670,7.1346,140.17,140.12,7.3067]
[1720041340872,7.9722882,140.18,140.13,7.1362]
[1720041341254,7.9722882,140.18,140.14,0.17]
[1720041341455,7.9722882,140.18,140.13,7.1362]
[1720041341676,0.8384882,140.18,140.12,17.8413]
[1720041342473,7.1345,140.17,140.12,24.9779]
[1720041342863,7.1345,140.17,140.13,7.1362]
[1720041343064,7.9721882,140.18,140.13,7.1362]
[1720041343589,20.0,140.17,140.13,7.1362]
[1720041343951,20.0,140.17,140.14,7.1355]
[1720041344161,7.9721882,140.18,140.13,7.136]
[1720041344454,20.0,140.17,140.13,7.1361]
[1720041348286,0.8384882,140.18,140.15,7.1351]
[1720041348969,0.8384882,140.18,140.16,7.1344]
[1720041349286,0.8384882,140.18,140.17,7.1341]
[1720041349860,0.8384882,140.18,140.17,7.4741]
[1720041354195,0.8384882,140.18,140.17,0.17]
[1720041354356,0.8384882,140.18,140.15,24.9721]